{"text_format":"3","workbook":"xlsx","n_sheets":4,"sheets":["רשימת קניות","התפלגות תקציב","רשימת משימות לביצוע","רשימת שיתוף"],"not_rendered":{"charts":2,"images":2,"defined_names":12},"read":"whole","date_system":"1900"}

{"sheet":"רשימת קניות","index":0,"n_rows":25,"n_cols":8,"rows_kept":25,"merged":[[2,1,2,7],[3,1,3,2],[4,4,6,7]]}
[null,"חזרה ללימודים","כלי תכנון"]
[]
[null,"עקוב אחר התקדמות הקניות שלך מול סכומי הקטגוריות של התקציב שהוזנו תחת 'התפלגות תקציב'."]
[null,"סיכום תקציב",null,null,{"$f":"\"התקדמות רכישה (\"&COUNTIFS(רשימת_פעולות_לביצוע[נקנה], \">0\")&\" מתוך \"&COUNTIFS(רשימת_פעולות_לביצוע[לקנות], \">0\")&\")\"","v":"התקדמות רכישה (1 מתוך 6)"}]
[null,"תקציב",{"v":1500,"d":"₪ 1,500.00"},null,{"$f":"IFERROR(COUNTIFS(רשימת_פעולות_לביצוע[לקנות],\">0\",רשימת_פעולות_לביצוע[נקנה],\">0\")/SumItemsToBuy,0)","v":{"v":0.16666666666666666,"d":"17%"}}]
[null,"סכום כולל של רשימת קניות",{"$f":"IFERROR(SUM(ChecklistTotal), \"\")","v":{"v":365,"d":"₪ 365.00"}}]
[null,"יתרה",{"$f":"IFERROR(C5-C6, \"\")","v":{"v":1135,"d":"₪ 1,135.00"}}]
[null,"רשימת קניות"]
[null,"פריט","קטגוריה","כמות","לקנות","עלות","נקנה","עלות כוללת"]
[null,"חשבון","ספרי לימוד",1,1,{"v":55,"d":"₪ 55.00"},1,{"$f":"IFERROR(רשימת_פעולות_לביצוע[כמות]*רשימת_פעולות_לביצוע[עלות], \"\")","v":{"v":55,"d":"₪ 55.00"}}]
[null,"אנגלית","ספרי לימוד",1,1,null,null,{"$f":"IFERROR(רשימת_פעולות_לביצוע[כמות]*רשימת_פעולות_לביצוע[עלות], \"\")","v":0}]
[null,"ילקוט","ציוד",1,null,{"v":30,"d":"₪ 30.00"},null,{"$f":"IFERROR(רשימת_פעולות_לביצוע[כמות]*רשימת_פעולות_לביצוע[עלות], \"\")","v":{"v":30,"d":"₪ 30.00"}}]
[null,"מחשבון","ציוד",1,{"$nulls":3},{"$f":"IFERROR(רשימת_פעולות_לביצוע[כמות]*רשימת_פעולות_לביצוע[עלות], \"\")","v":0}]
[null,"עטי סימון","ציוד",3,{"$nulls":3},{"$f":"IFERROR(רשימת_פעולות_לביצוע[כמות]*רשימת_פעולות_לביצוע[עלות], \"\")","v":0}]
[null,"תלבושת אחידה","בגדים",2,1,{"v":100,"d":"₪ 100.00"},null,{"$f":"IFERROR(רשימת_פעולות_לביצוע[כמות]*רשימת_פעולות_לביצוע[עלות], \"\")","v":{"v":200,"d":"₪ 200.00"}}]
[null,"חולצה, מכופתרת","בגדים",4,{"$nulls":3},{"$f":"IFERROR(רשימת_פעולות_לביצוע[כמות]*רשימת_פעולות_לביצוע[עלות], \"\")","v":0}]
[null,"חולצה, חולצות טי","בגדים",5,{"$nulls":3},{"$f":"IFERROR(רשימת_פעולות_לביצוע[כמות]*רשימת_פעולות_לביצוע[עלות], \"\")","v":0}]
[null,"מכנסיים קצרים","בגדים",2,{"$nulls":3},{"$f":"IFERROR(רשימת_פעולות_לביצוע[כמות]*רשימת_פעולות_לביצוע[עלות], \"\")","v":0}]
[null,"נעלי ספורט","בגדים",2,1,null,null,{"$f":"IFERROR(רשימת_פעולות_לביצוע[כמות]*רשימת_פעולות_לביצוע[עלות], \"\")","v":0}]
[null,"גרביים","בגדים",10,{"$nulls":3},{"$f":"IFERROR(רשימת_פעולות_לביצוע[כמות]*רשימת_פעולות_לביצוע[עלות], \"\")","v":0}]
[null,"מעיל רוח","בגדים",1,1,{"v":80,"d":"₪ 80.00"},null,{"$f":"IFERROR(רשימת_פעולות_לביצוע[כמות]*רשימת_פעולות_לביצוע[עלות], \"\")","v":{"v":80,"d":"₪ 80.00"}}]
[null,"סוודרים","בגדים",1,{"$nulls":3},{"$f":"IFERROR(רשימת_פעולות_לביצוע[כמות]*רשימת_פעולות_לביצוע[עלות], \"\")","v":0}]
[null,"סווטשירטים","בגדים",1,{"$nulls":3},{"$f":"IFERROR(רשימת_פעולות_לביצוע[כמות]*רשימת_פעולות_לביצוע[עלות], \"\")","v":0}]
[null,"הלבשה תחתונה","בגדים",10,{"$nulls":3},{"$f":"IFERROR(רשימת_פעולות_לביצוע[כמות]*רשימת_פעולות_לביצוע[עלות], \"\")","v":0}]
[null,"מעיל חורף","בגדים",1,1,null,null,{"$f":"IFERROR(רשימת_פעולות_לביצוע[כמות]*רשימת_פעולות_לביצוע[עלות], \"\")","v":0}]

{"sheet":"התפלגות תקציב","index":1,"n_rows":6,"n_cols":3,"rows_kept":6}
[null,"התפלגות תקציב"]
[null,"הוסף קטגוריות וסכומי תקציב שמולם יתבצע מעקב ברשימת הקניות."]
[null,"קטגוריה","עלות כוללת"]
[null,"בגדים",{"$f":"IFERROR(SUMIFS(רשימת_פעולות_לביצוע[עלות כוללת],רשימת_פעולות_לביצוע[קטגוריה],קטגוריה[קטגוריה]), \"\")","v":{"v":280,"d":"₪ 280.00"}}]
[null,"ציוד",{"$f":"IFERROR(SUMIFS(רשימת_פעולות_לביצוע[עלות כוללת],רשימת_פעולות_לביצוע[קטגוריה],קטגוריה[קטגוריה]), \"\")","v":{"v":30,"d":"₪ 30.00"}}]
[null,"ספרי לימוד",{"$f":"IFERROR(SUMIFS(רשימת_פעולות_לביצוע[עלות כוללת],רשימת_פעולות_לביצוע[קטגוריה],קטגוריה[קטגוריה]), \"\")","v":{"v":55,"d":"₪ 55.00"}}]

{"sheet":"רשימת משימות לביצוע","index":2,"n_rows":22,"n_cols":3,"rows_kept":22}
[null,"רשימת משימות לביצוע"]
[null,"עקוב אחר כל הפעילויות שעליך לבצע לפני תחילת הלימודים."]
[null,"בוצע","משימה"]
[null,"x","למלא את כל טפסי הרישום"]
[null,null,"לקבוע בדיקה רפואית ובדיקת ראייה, במידת הצורך"]
[null,null,"לוודא שניתנו כל החיסונים הדרושים"]
[null,null,"להשיג פתק מהרופא עם הוראות מינון עבור כל התרופות הדרושות"]
[null,null,"לעיין במדיניות הלבוש של בית הספר"]
[null,null,"להשיג רשימת ציוד לבית הספר"]
[null,null,"להיפגש עם המורה"]
[null,null,"לברר מהי שיטת ההתקשרות המועדפת על המורה (טלפון, דואר אלקטרוני, מכתב)"]
[null,null,"לסייר בבית הספר עם הילד/ה"]
[null,null,"לעזור לילד/ה לשנן את מספר הטלפון בבית, מספר הטלפון בעבודה והכתובת בבית"]
[null,null,"לארגן תחבורה, לקבוע נקודת מפגש בטוחה ולתרגל את השיטה"]
[null,null,"במקרה של הליכה, לתרגל כמה פעמים את המסלול אל בית הספר וממנו עם הילד/ה"]
[null,null,"במקרה של הסעה משותפת, להציג את הילד/ה לכל הנהגים בהסעות"]
[null,null,"במקרה של נסיעה באוטובוס, לברר את לוח הזמנים ותחנות האוטובוס"]
[null,null,"לתאם שירותי שמרטפות אחרי שעות הלימודים"]
[null,null,"לתכנן תפריט עבור ארוחות בוקר, חטיף בבית הספר, ארוחות צהריים ארוזות וחטיפים אחרי שעות הלימודים"]
[null,null,"לברר את לוח הזמנים של שיעורי הבית"]
[null,null,"ליצור שגרת שינה לפחות שבועיים לפני תחילת הלימודים"]
[null,null,"להכין לוח שנה של כל הפעילויות והאירועים של בית הספר"]

{"sheet":"רשימת שיתוף","index":3,"n_rows":4,"n_cols":5,"rows_kept":4}
[null,"רשימת שיתוף",null,null,"שתף רשימה זו עם אנשים אחרים כך שהם יוכלו להוסיף לה. בחר 'שתף' בפינה השמאלית העליונה או הקש ALT ולאחר מכן ךף. שמור את הקובץ ב- OneDrive ושלח את הקישור לחבריך."]
[null,"שם","כתובת דואר אלקטרוני","שותף?"]
[null,"אדם 1","someone@email.com","כן"]
[null,"אדם 2","someone@email.com","לא"]